bitfinex/quotes_SOLUSD_20220228
["timestamp","ask_amount","ask_price","bid_price","bid_amount"]
[1646025275180,17.2369,87.11,87.033,2.86870142]
[1646025275377,4.593,87.109,87.033,2.86870142]
[1646025276278,17.2387,87.1,87.033,2.86870142]
[1646025277079,56.70380474,87.099,87.033,2.86870142]
[1646025279486,6.0,87.098,87.033,2.86870142]
[1646025279884,17.2407,87.09,87.033,2.86870142]
[1646025280687,115.6,87.089,87.033,2.86870142]
[1646025280986,17.2428,87.08,87.013,2.38022182]
[1646025281588,47.28325343,87.079,87.013,2.38022182]
[1646025282987,162.88325343,87.079,87.013,2.38022182]
[1646025283186,17.2447,87.07,87.013,2.38022182]
[1646025284787,115.6,87.069,86.99,14.05]
[1646025284986,17.2485,87.05,86.991,7.02212616]
[1646025285189,17.2485,87.05,86.991,4.594]
[1646025285588,4.596,87.066,86.991,4.594]
[1646025285788,60.25141855,87.049,86.992,6.0]
[1646025292995,17.2447,87.07,86.992,6.0]
[1646025293295,17.2427,87.08,87.001,2.62242528]
[1646025293495,6.0,87.079,87.002,6.0]
[1646025293696,6.0,87.088,87.002,8.74678921]
[1646025293898,6.0,87.088,87.003,2.74678921]
[1646025294097,49.11945256,87.087,87.004,7.78572687]
[1646025294298,10.595,87.086,87.004,7.78572687]
[1646025294499,10.595,87.086,87.01,17.2409]
[1646025294699,10.595,87.086,87.011,2.60928122]
[1646025296001,6.0,87.086,87.011,5.35607043]
[1646025296198,6.0,87.086,87.012,6.0]
[1646025296605,6.0,87.086,87.013,2.74678921]
[1646025296805,6.0,87.086,87.014,6.0]
[1646025297307,6.0,87.086,87.013,2.74678921]
[1646025297506,17.2429,87.08,87.011,2.60928122]
[1646025297704,6.0,87.079,87.011,2.60928122]
[1646025302933,115.6,87.078,87.011,2.60928122]
[1646025303133,115.6,87.069,87.006,2.92783205]
[1646025303334,6.0,87.068,87.006,2.92783205]
[1646025303932,46.94907519,87.067,87.006,2.92783205]
[1646025304138,6.0,87.066,87.006,2.92783205]
[1646025311140,46.94907519,87.067,87.006,2.92783205]
[1646025311341,46.94907519,87.067,87.007,6.0]
[1646025311743,46.94907519,87.067,87.008,7.34178921]
[1646025311943,46.94907519,87.067,87.008,2.74678921]
[1646025312242,46.94907519,87.067,87.006,2.92783205]
[1646025312444,46.94907519,87.067,87.007,10.595]
[1646025313447,46.94907519,87.067,87.01,17.2413]
[1646025313745,46.94907519,87.067,87.011,2.68749252]
[1646025316349,46.94907519,87.067,87.005,23.0214]
[1646025316350,46.94907519,87.067,87.006,2.97352294]
[1646025316948,6.0,87.066,87.006,2.97352294]
[1646025317550,46.94907519,87.067,87.006,2.97352294]
[1646025317953,6.0,87.066,87.006,2.97352294]
[1646025318251,46.94907519,87.067,87.006,2.97352294]
[1646025318853,6.0,87.066,87.006,2.97352294]
[1646025319253,46.94907519,87.067,87.006,2.97352294]
[1646025327982,46.94907519,87.067,87.007,4.595]
[1646025328583,46.94907519,87.067,87.006,2.97352294]
[1646025328881,6.0,87.066,87.006,2.97352294]
[1646025329482,46.94907519,87.067,87.006,2.97352294]
[1646025329682,6.0,87.066,87.006,2.97352294]
[1646025330983,6.0,87.066,87.007,6.0]
[1646025331786,46.94907519,87.067,87.007,6.0]
[1646025337389,46.94907519,87.067,87.006,2.97352294]
[1646025339694,46.94907519,87.067,87.008,2.91735716]
[1646025341396,46.94907519,87.067,87.01,31.2909]
[1646025341694,46.94907519,87.067,87.011,8.93230625]
[1646025341894,28.9694,87.127,87.011,8.93230625]
[1646025342097,28.9694,87.127,87.013,3.04001145]
[1646025342293,4.96663844,87.099,87.014,6.0]
[1646025342500,4.96663844,87.099,87.02,17.2375]
[1646025342696,4.96663844,87.099,87.031,115.6]
[1646025342894,47.85576497,87.099,87.034,6.60649164]
[1646025343094,42.88912653,87.099,87.035,6.0]
[1646025343493,42.88912653,87.099,87.035,30.55229285]
[1646025343694,42.88912653,87.099,87.036,2.71604581]
[1646025343895,42.88912653,87.099,87.05,14.05]
[1646025344094,42.88912653,87.099,87.052,18.20479123]
[1646025344293,42.88912653,87.099,87.053,8.83801396]
[1646025346397,24.3744,87.127,87.053,8.83801396]
[1646025346596,4.591,87.143,87.06,17.2312]
[1646025346797,10.98810791,87.142,87.061,8.49774058]
[1646025346998,10.98810791,87.142,87.061,11.24452979]
[1646025347397,55.15532091,87.141,87.062,2.74678921]
[1646025347598,138.8309,87.14,87.06,14.05]
[1646025347796,28.21900791,87.14,87.06,14.05]
[1646025347996,23.433,87.139,87.06,14.05]
[1646025348196,6.0,87.138,87.06,14.05]
[1646025348597,4.98810791,87.137,87.06,14.05]
[1646025348896,6.0,87.136,87.06,14.05]
[1646025349296,4.98810791,87.135,87.06,14.05]
[1646025349498,17.2328,87.13,87.06,14.05]
[1646025349699,6.0,87.134,87.06,31.281]
[1646025349897,6.0,87.134,87.061,8.33773785]
[1646025350298,6.0,87.134,87.062,2.74678921]
[1646025350499,6.0,87.138,87.063,6.0]
[1646025350902,6.0,87.138,87.064,2.74678921]
[1646025351101,6.0,87.138,87.07,17.2292]
[1646025351301,6.0,87.138,87.07,14.05]
[1646025351502,6.0,87.138,87.071,2.73629665]
[1646025351700,10.591,87.138,87.07,14.05]
[1646025352100,6.0,87.138,87.07,14.05]
[1646025353802,4.591,87.137,87.07,14.05]
[1646025354003,6.0,87.136,87.07,14.05]
[1646025354604,6.0,87.137,87.066,2.62365991]
[1646025355504,17.2329,87.13,87.066,2.62365991]
[1646025357508,6.0,87.137,87.066,2.62365991]
[1646025357708,6.0,87.138,87.066,2.62365991]
[1646025358511,6.0,87.138,87.07,17.2292]
[1646025358711,6.0,87.138,87.071,2.80851328]
[1646025359934,6.0,87.138,87.066,2.57929592]
[1646025360115,6.0,87.138,87.072,2.74678921]
[1646025360314,24.0208,87.145,87.072,2.74678921]
[1646025360315,6.0,87.14,87.072,2.74678921]
[1646025361315,6.0,87.14,87.071,2.39810621]
[1646025361716,6.0,87.14,87.072,6.0]
[1646025362317,6.0,87.14,87.073,2.74678921]
[1646025362520,17.2267,87.16,87.074,6.0]
[1646025362717,53.0524,87.179,87.081,2.56743196]
[1646025362917,53.0524,87.179,87.08,17.2272]
[1646025362918,53.0524,87.179,87.082,30.388]
[1646025363118,53.0524,87.179,87.083,2.76214376]
[1646025363322,5.0016485,87.178,87.084,6.0]
[1646025363520,55.74802702,87.178,87.086,2.48745308]
[1646025363719,50.74637852,87.178,87.1,14.05]
[1646025363921,50.74637852,87.178,87.101,28.8025]
[1646025364122,50.74637852,87.178,87.11,17.2198]
[1646025364323,6.0,87.177,87.111,25.52254942]
[1646025364625,6.0,87.177,87.112,2.62537774]
[1646025364822,4.59,87.199,87.113,6.0]
[1646025365025,23.0633,87.205,87.115,2.98095282]
[1646025365225,23.0633,87.205,87.116,6.0]
[1646025365425,5.02083021,87.204,87.12,14.05]
[1646025365626,5.02083021,87.204,87.13,17.217]
[1646025365924,55.55297654,87.203,87.132,3.41084897]
[1646025366125,17.2191,87.2,87.132,3.41084897]
[1646025366328,10.588,87.199,87.132,2.32753064]
[1646025366633,13.33478921,87.199,87.132,2.32753064]
[1646025366828,8.74678921,87.199,87.132,2.32753064]
[1646025367030,2.74678921,87.198,87.132,2.32753064]
[1646025367326,6.0,87.197,87.132,2.32753064]
[1646025367545,17.221,87.19,87.12,14.05]
[1646025367740,51.99381204,87.189,87.121,2.25734088]
[1646025367939,6.0,87.188,87.121,2.25734088]
[1646025368150,4.589,87.187,87.121,2.25734088]
[1646025368342,6.0,87.186,87.121,2.25734088]
[1646025368545,4.589,87.185,87.121,2.25734088]
[1646025368942,6.0,87.184,87.121,2.25734088]
[1646025369143,2.74678921,87.184,87.121,2.25734088]
[1646025370157,132.8231,87.18,87.121,2.25734088]
[1646025370345,115.6,87.178,87.04,175.58]
[1646025370548,115.6,87.176,87.091,2.88504745]
[1646025370745,115.6,87.174,87.056,25.54622792]
[1646025370947,115.6,87.17,87.081,17.53253102]
[1646025371148,33.8298,87.169,87.083,2.6835526]
[1646025371448,36.57658921,87.169,87.083,2.6835526]
[1646025371747,2.74678921,87.168,87.083,2.6835526]
[1646025371948,10.591,87.167,87.083,2.6835526]
[1646025372453,17.2282,87.16,87.083,2.6835526]
[1646025372652,10.591,87.159,87.083,2.6835526]
[1646025373349,2.74678921,87.158,87.083,2.6835526]
[1646025373552,50.43170767,87.157,87.083,2.6835526]
[1646025373753,73.88230767,87.157,87.083,2.6835526]
[1646025374450,50.43170767,87.157,87.083,2.6835526]
[1646025376856,50.43170767,87.157,87.084,6.0]
[1646025377657,50.43170767,87.157,87.09,17.2243]
[1646025377862,22.679,87.178,87.091,8.26168314]
[1646025378063,22.679,87.178,87.092,24.647]
[1646025378259,22.679,87.178,87.093,6.0]
[1646025378458,22.679,87.178,87.093,8.30062374]
[1646025378859,47.40665592,87.177,87.093,8.30062374]
[1646025379058,17.2254,87.17,87.093,8.30062374]
[1646025379261,6.0,87.169,87.093,2.30062374]
[1646025379659,6.0,87.175,87.093,2.30062374]
[1646025379861,4.59,87.174,87.093,2.30062374]
[1646025380062,17.2268,87.16,87.093,2.30062374]
[1646025380265,50.70401401,87.158,87.093,2.30062374]
[1646025380464,10.591,87.157,87.093,2.30062374]
[1646025380862,6.0,87.157,87.093,2.30062374]
[1646025381463,17.2295,87.15,87.093,2.30062374]
[1646025382465,6.0,87.157,87.093,2.30062374]
[1646025382664,75.23351401,87.158,87.093,2.30062374]
[1646025387474,6.0,87.157,87.093,2.30062374]
[1646025388077,75.23351401,87.158,87.093,2.30062374]
[1646025388475,6.0,87.157,87.093,2.30062374]
[1646025389680,17.2287,87.15,87.093,2.30062374]
[1646025396295,75.23351401,87.158,87.093,2.30062374]
[1646025398599,17.229,87.15,87.093,2.30062374]
[1646025400199,4.591,87.157,87.093,2.30062374]
[1646025400401,6.0,87.156,87.093,2.30062374]
[1646025400600,6.0,87.157,87.093,2.30062374]
[1646025401303,75.23351401,87.158,87.093,2.30062374]
[1646025402105,17.229,87.15,87.093,2.30062374]
[1646025402305,6.0,87.149,87.093,2.30062374]
[1646025402704,17.229,87.15,87.093,2.30062374]
[1646025402904,6.0,87.149,87.093,2.30062374]
[1646025403405,17.229,87.15,87.093,2.30062374]
[1646025412316,75.23351401,87.158,87.093,2.30062374]
[1646025414019,50.70401401,87.158,87.093,2.30062374]
[1646025414617,50.70401401,87.158,87.094,6.0]
[1646025415020,50.70401401,87.158,87.094,8.74678921]
[1646025415419,17.2229,87.18,87.095,2.74678921]
[1646025415619,6.0,87.179,87.096,6.0]
[1646025415819,10.92556061,87.179,87.1,14.05]
[1646025416019,10.92556061,87.179,87.101,6.0]
[1646025416220,4.92556061,87.178,87.101,8.53387865]
[1646025416418,57.55942224,87.177,87.102,0.40080511]
[1646025416821,57.55942224,87.177,87.102,25.26810511]
[1646025417022,57.55942224,87.177,87.103,8.50970165]
[1646025418020,57.55942224,87.177,87.103,2.50970165]
[1646025418622,17.2248,87.17,87.103,2.50970165]
[1646025418822,6.0,87.169,87.103,2.50970165]
[1646025419027,10.92302762,87.169,87.103,2.50970165]
[1646025419226,23.0948,87.168,87.103,2.50970165]
[1646025421929,4.59,87.167,87.103,2.50970165]
[1646025422528,23.0948,87.168,87.103,2.50970165]
[1646025424242,4.91602084,87.167,87.103,2.50970165]
[1646025425040,9.50602084,87.167,87.103,2.50970165]
[1646025425441,9.50602084,87.166,87.103,2.50970165]
[1646025425940,4.91602084,87.166,87.103,2.50970165]
[1646025426140,51.55942224,87.177,87.104,6.0]
[1646025426439,6.0,87.176,87.103,2.50970165]
[1646025427039,22.856,87.175,87.103,2.50970165]
[1646025427241,17.225,87.17,87.103,2.50970165]
[1646025427851,10.92340803,87.169,87.103,2.50970165]
[1646025428051,4.59,87.168,87.103,2.50970165]
[1646025428254,17.227,87.16,87.103,2.50970165]
[1646025428453,10.59,87.159,87.07,14.05]
[1646025428651,10.59,87.159,87.024,143.5974]
[1646025428652,115.6,87.158,87.083,24.5734]
[1646025428852,10.591,87.157,87.084,2.9967474]
[1646025429051,15.51440803,87.157,87.084,2.9967474]
[1646025429454,120.52340803,87.156,87.084,2.9967474]
[1646025429651,115.6,87.154,87.084,2.9967474]
[1646025429853,10.591,87.153,87.084,2.9967474]
[1646025430252,4.92340803,87.152,87.084,2.9967474]
[1646025430453,17.2295,87.15,87.084,2.9967474]
[1646025430655,10.591,87.149,87.084,2.9967474]
[1646025431154,24.8209,87.148,87.084,2.9967474]
[1646025431354,10.591,87.147,87.084,2.9967474]
[1646025432454,17.2321,87.14,87.084,2.9967474]
[1646025434257,45.0,87.137,87.051,2.74678921]
[1646025434458,115.6,87.119,87.02,14.05]
[1646025434658,115.6,87.117,87.041,6.0]
[1646025434859,115.6,87.115,87.022,6.0]
[1646025435060,53.80073712,87.114,87.023,25.08719403]
[1646025435257,53.80073712,87.114,87.024,6.0]
[1646025435258,57.4712,87.11,87.024,6.0]
[1646025435457,10.594,87.109,87.023,25.08719403]
[1646025435656,1.75470447,87.108,87.023,25.08719403]
[1646025435856,1.58313284,87.106,87.023,25.08719403]
[1646025436055,6.0,87.105,87.023,25.08719403]
[1646025436259,1.500031,87.103,87.024,2.74678921]
[1646025436456,17.2414,87.09,87.024,2.74678921]
[1646025436656,48.88417996,87.089,87.024,2.74678921]
[1646025436867,1.47043884,87.088,87.025,6.0]
[1646025437057,47.25098718,87.089,87.023,25.08719403]
[1646025437058,47.25098718,87.089,87.024,6.0]
[1646025438260,47.25098718,87.089,87.024,8.74678921]
[1646025438658,6.0,87.088,87.024,6.0]
[1646025439457,47.25098718,87.089,87.024,6.0]
[1646025440558,47.25098718,87.089,87.025,2.74678921]
[1646025440762,47.25098718,87.089,87.026,6.0]
[1646025441158,1.70021396,87.088,87.027,2.74678921]
[1646025441361,1.70021396,87.088,87.028,6.0]
[1646025441958,1.70021396,87.088,87.023,25.08719403]
[1646025441959,1.70021396,87.088,87.024,6.0]
[1646025442159,47.25098718,87.089,87.024,6.0]
[1646025442360,1.84389377,87.088,87.024,6.0]
[1646025442763,4.594,87.087,87.024,6.0]
[1646025442960,6.0,87.086,87.022,6.0]
[1646025443160,4.594,87.085,87.022,6.0]
[1646025443361,6.0,87.084,87.022,6.0]
[1646025444562,17.2426,87.08,87.022,6.0]
[1646025444762,10.595,87.079,87.021,47.6022]
[1646025444962,1.51337601,87.078,87.021,47.6022]
[1646025445162,10.595,87.077,87.021,47.6022]
[1646025445464,54.63815528,87.075,87.021,47.6022]
[1646025445662,10.595,87.074,87.005,22.43761032]
[1646025445862,1.64679955,87.073,87.006,24.4868]
[1646025446061,10.595,87.072,87.006,24.4868]
[1646025446264,115.6,87.069,86.991,4.595]
[1646025446561,115.6,87.069,86.981,23.6881]
[1646025446562,1.49891401,87.066,86.982,23.582]
[1646025446962,1.44980266,87.064,86.983,22.86918614]
[1646025447162,17.2474,87.06,86.983,22.86918614]
[1646025447362,55.89795253,87.058,86.983,22.86918614]
[1646025447561,7.79389846,87.057,86.983,22.86918614]
[1646025447762,23.7789,87.056,86.983,22.86918614]
[1646025447962,6.0,87.055,86.983,22.86918614]
[1646025448564,17.2487,87.05,86.983,22.86918614]
[1646025448962,6.0,87.049,86.983,22.86918614]
[1646025449362,7.409327,87.049,86.983,22.86918614]
[1646025449563,6.0,87.049,86.983,22.86918614]
[1646025449964,10.596,87.053,86.982,23.582]
[1646025450162,1.78810932,87.052,86.982,23.582]
[1646025450364,17.2487,87.05,86.982,23.582]
[1646025450565,1.82050223,87.049,86.982,23.582]
[1646025450767,6.0,87.048,86.982,23.582]
[1646025450963,4.596,87.051,86.983,30.08606747]
[1646025451165,23.7789,87.056,86.983,39.08285668]
[1646025451364,23.7789,87.056,86.984,2.74678921]
[1646025451565,23.7789,87.056,86.985,6.0]
[1646025451763,1.39674243,87.067,86.985,6.0]
[1646025451965,17.2449,87.07,86.986,118.34678921]
[1646025452265,24.84310483,87.085,86.986,118.34678921]
[1646025452266,23.0376,87.085,86.991,115.6]
[1646025452468,23.0376,87.085,86.993,115.6]
[1646025452666,23.0376,87.085,86.995,2.67166326]
[1646025452866,23.0376,87.085,87.01,14.05]
[1646025453067,43.65001934,87.084,87.011,32.86541471]
[1646025453269,43.65001934,87.084,87.011,35.61220392]
[1646025453665,43.65001934,87.084,87.012,2.74678921]
[1646025453869,43.65001934,87.084,87.013,6.0]
[1646025454266,43.65001934,87.084,87.014,2.74678921]
[1646025454466,43.65001934,87.084,87.015,6.0]
[1646025454668,43.65001934,87.084,87.02,14.05]
[1646025454869,43.65001934,87.084,87.021,30.9329]
[1646025455572,6.0,87.083,87.021,30.9329]
[1646025455772,43.65001934,87.084,87.021,30.9329]
[1646025458673,45.408469,87.084,87.021,30.9329]
[1646025459675,45.408469,87.084,87.021,24.9329]
[1646025459873,6.0,87.083,87.022,6.0]
[1646025460273,6.0,87.083,87.021,24.9329]
[1646025460674,7.54893416,87.083,87.021,24.9329]
[1646025460877,115.6,87.082,87.021,24.9329]
[1646025461080,1.5451139,87.081,87.021,24.9329]
[1646025461376,1.42816487,87.079,87.011,22.8669]
[1646025461574,10.595,87.078,87.011,22.8669]
[1646025461775,17.245,87.07,87.011,22.8669]
[1646025461977,62.63716532,87.069,87.011,22.8669]
[1646025462276,1.70379514,87.068,86.991,24.2257]
[1646025462479,7.40726919,87.067,86.992,6.0]
[1646025463077,17.2471,87.06,86.992,6.0]
[1646025463280,12.14613962,87.059,86.991,24.2257]
[1646025463481,1.66033973,87.058,86.991,24.2257]
[1646025463678,10.596,87.057,86.991,24.2257]
[1646025463880,7.69316159,87.056,86.991,24.2257]
[1646025464079,50.47156206,87.055,86.991,24.2257]
[1646025464279,1.74282456,87.054,86.991,24.2257]
[1646025464479,17.2488,87.05,86.991,24.2257]
[1646025464679,1.45053279,87.049,86.991,24.2257]
[1646025464879,6.0,87.048,86.991,24.2257]
[1646025466680,1.45053279,87.049,86.991,24.2257]
[1646025467282,17.2488,87.05,86.991,24.2257]
[1646025467482,50.47156206,87.055,86.991,24.2257]
[1646025467981,6.0,87.054,86.991,24.2257]
[1646025468181,50.47156206,87.055,86.991,24.2257]
[1646025469181,46.45990067,87.055,86.991,24.2257]
[1646025469983,46.45990067,87.055,86.992,6.0]
[1646025470784,46.45990067,87.055,86.993,2.74678921]
[1646025470986,46.45990067,87.055,86.994,6.0]
[1646025471286,46.45990067,87.055,86.992,6.0]
[1646025473291,46.45990067,87.055,86.993,2.74678921]
[1646025473491,46.45990067,87.055,86.994,6.0]
[1646025473892,46.45990067,87.055,86.995,2.74678921]
[1646025474094,46.45990067,87.055,87.01,14.05]
[1646025474291,46.45990067,87.055,87.011,10.17014147]
[1646025475992,46.45990067,87.055,87.01,14.05]
[1646025476206,46.45990067,87.055,87.011,6.0]
[1646025476408,46.45990067,87.055,87.01,14.05]
[1646025479909,46.45990067,87.055,87.011,6.0]
[1646025482412,4.595,87.078,87.011,6.0]
[1646025482713,4.595,87.111,87.012,24.301]
[1646025482911,6.0,87.11,87.013,6.0]
[1646025483110,62.2744,87.116,87.013,6.0]
[1646025483111,4.594,87.109,87.013,6.0]
[1646025483311,59.1184305,87.107,87.013,6.0]
[1646025483511,17.2401,87.1,87.02,17.2391]
[1646025483709,17.2401,87.1,87.03,14.05]
[1646025483710,1.59581584,87.099,87.03,14.05]
[1646025483911,1.59581584,87.099,87.031,6.0]
[1646025484114,1.59581584,87.099,87.032,24.8117]
[1646025484311,1.59581584,87.099,87.033,6.0]
[1646025490920,22.6324,87.106,87.033,6.0]
[1646025491117,4.594,87.134,87.034,118.34678921]
[1646025491317,6.0,87.128,87.034,118.34678921]
[1646025491518,6.0,87.133,87.036,115.6]
[1646025491718,1.69239706,87.146,87.05,14.05]
[1646025491920,10.591,87.145,87.051,52.8379]
[1646025492117,17.2324,87.14,87.052,23.81384134]
[1646025492317,12.19965329,87.139,87.053,6.0]
[1646025492519,1.75613401,87.138,87.053,6.0]
[1646025492717,10.591,87.137,87.053,6.0]
[1646025492920,1.44505834,87.136,87.053,6.0]
[1646025493120,10.591,87.135,87.053,6.0]
[1646025493318,1.46937802,87.134,87.06,17.2316]
[1646025493521,4.591,87.133,87.061,6.0]
[1646025493720,4.591,87.133,87.061,29.4775]
[1646025494720,1.46937802,87.134,87.061,29.4775]
[1646025496921,1.46937802,87.134,87.07,17.2298]
[1646025497123,1.46937802,87.134,87.071,38.56730223]
[1646025498122,1.46937802,87.134,87.071,30.4945]
[1646025498323,1.86117374,87.129,87.071,6.0]
[1646025498524,6.0,87.128,87.052,10.591]
[1646025498726,1.70087948,87.126,87.053,23.1134]
[1646025498925,117.30087948,87.126,87.054,6.0]
[1646025499127,1.61401701,87.123,87.054,6.0]
[1646025499324,1.70135262,87.119,87.054,6.0]
[1646025499525,1.8297868,87.117,87.054,6.0]
[1646025499726,10.593,87.116,87.054,6.0]
[1646025499926,1.4971549,87.115,87.054,6.0]
[1646025500125,1.66254156,87.113,87.054,6.0]
[1646025500326,17.2392,87.1,87.054,6.0]
[1646025500725,55.79760559,87.099,87.054,6.0]
[1646025500926,1.51111505,87.098,87.054,6.0]
[1646025501525,1.51111505,87.098,87.053,23.1134]
[1646025501526,1.51111505,87.098,87.024,4.593]
[1646025501726,17.2408,87.09,87.025,29.7545]
[1646025501926,1.35528562,87.089,87.025,23.7545]
[1646025504129,1.35528562,87.089,87.026,6.0]
[1646025506534,54.03679235,87.099,87.03,17.2375]
[1646025506733,54.03679235,87.099,87.031,4.594]
[1646025506931,54.03679235,87.099,87.032,6.0]
[1646025507132,54.03679235,87.099,87.033,5.17462532]
[1646025507333,1.86671633,87.098,87.034,6.0]
[1646025508033,1.76149381,87.097,87.035,23.5005]
[1646025508234,1.76149381,87.097,87.036,6.0]
[1646025508935,24.7322,87.098,87.036,6.0]
[1646025509134,24.7322,87.098,87.04,14.05]
[1646025509337,24.7322,87.098,87.041,6.0]
[1646025510736,1.38160286,87.097,87.041,6.0]
[1646025511836,1.38160286,87.097,87.04,14.05]
[1646025512039,1.38160286,87.097,87.035,23.5005]
[1646025512239,1.38160286,87.097,87.036,6.0]
[1646025512440,5.97560286,87.097,87.035,23.5005]
[1646025512641,6.0,87.096,87.035,23.5005]
[1646025512840,1.38160286,87.097,87.035,23.5005]
[1646025513242,6.0,87.096,87.035,23.5005]
[1646025513441,17.2406,87.09,87.035,23.5005]
[1646025513642,1.71999494,87.089,87.035,23.5005]
[1646025514947,6.0,87.088,87.035,23.5005]
[1646025515548,1.71999494,87.089,87.035,23.5005]
[1646025515948,1.71999494,87.089,87.036,28.95563468]
[1646025516949,1.87329122,87.097,87.036,28.95563468]
[1646025517148,1.43506808,87.097,87.036,28.95563468]
[1646025517351,1.43506808,87.097,87.037,6.0]
[1646025517566,4.594,87.121,87.04,14.05]
[1646025517771,3.19606984,87.188,87.04,14.05]
[1646025517772,1.82666531,87.136,87.041,10.593]
[1646025517969,1.82666531,87.136,87.041,19.093]
[1646025518168,115.6,87.134,87.041,19.093]
[1646025518368,17.233,87.13,87.041,14.5]
[1646025518567,1.61577995,87.128,87.041,14.5]
[1646025518769,1.37462864,87.126,87.041,14.5]
[1646025518969,6.0,87.125,87.042,4.593]
[1646025519177,6.0,87.125,87.043,6.0]
[1646025519369,6.0,87.13,87.043,6.0]
[1646025519570,17.2358,87.12,87.043,6.0]
[1646025519770,29.017,87.119,87.042,6.0]
[1646025519970,53.29504982,87.118,87.043,4.593]
[1646025520272,1.67160634,87.117,87.044,6.0]
[1646025520470,1.67160634,87.117,87.045,4.593]
[1646025520672,1.67160634,87.117,87.046,6.0]
[1646025520871,1.67160634,87.117,87.047,4.593]
[1646025521071,53.29504982,87.118,87.048,28.8637]
[1646025521272,1.76165686,87.117,87.051,2.93100889]
[1646025521474,1.76165686,87.117,87.052,6.0]
[1646025522671,17.2367,87.11,87.052,6.0]
[1646025522875,7.48768747,87.109,87.052,6.0]
[1646025523373,7.48768747,87.109,87.051,2.93100889]
[1646025523972,7.48768747,87.109,87.05,14.05]
[1646025525476,7.48768747,87.109,87.048,22.8637]
[1646025526376,17.2386,87.1,87.048,22.8637]
[1646025526577,66.21987422,87.099,87.048,22.8637]
[1646025526777,1.66789232,87.098,87.048,22.8637]
[1646025530781,1.66789232,87.098,87.031,4.593]
[1646025530984,1.86020976,87.089,87.015,24.6469]
[1646025531181,4.594,87.088,87.016,6.0]
[1646025531382,115.6,87.087,87.015,24.6469]
[1646025531580,115.6,87.085,87.015,24.6469]
[1646025531780,53.59430688,87.083,87.015,24.6469]
[1646025531981,17.2459,87.07,87.015,24.6469]
[1646025532181,55.90780109,87.068,87.015,24.6469]
[1646025532383,7.53174101,87.067,87.015,24.6469]
[1646025532582,1.53174101,87.067,87.015,24.6469]
[1646025532985,55.90780109,87.068,87.015,24.6469]
[1646025533386,1.47754532,87.09,87.016,6.0]
[1646025533585,2.74678921,87.095,87.016,6.0]
[1646025533784,1.58017658,87.109,87.02,14.05]
[1646025533984,4.594,87.119,87.021,6.0]
[1646025534384,54.4965926,87.084,87.021,6.0]
[1646025534586,121.6,87.083,86.929,2.35987858]
[1646025534785,115.6,87.079,86.956,48.2166]
[1646025534985,1.37864842,87.076,86.957,20.26403585]
[1646025535186,1.86861467,87.073,86.957,20.26403585]
[1646025535390,1.47519262,87.07,86.957,20.26403585]
[1646025535585,1.85542051,87.068,86.958,24.11457126]
[1646025535787,126.196,87.069,86.958,24.11457126]
[1646025535788,57.90111606,87.049,86.96,17.2504]
[1646025535986,1.59746885,87.047,86.961,6.0]
[1646025536190,28.8122,87.048,86.961,6.0]
[1646025536191,24.2152,87.048,86.961,6.0]
[1646025536587,24.2152,87.048,86.962,115.6]
[1646025536787,24.2152,87.048,86.963,6.0]
[1646025536989,24.2152,87.048,86.961,6.0]
[1646025537588,24.2152,87.048,86.97,17.2485]
[1646025537888,24.2152,87.048,86.972,7.77207231]
[1646025538088,24.2152,87.048,86.973,6.0]
[1646025539391,6.2968301,87.058,86.98,17.2469]
[1646025539591,24.6004,87.059,86.981,6.0]
[1646025539791,6.0,87.057,86.982,22.9814]
[1646025539990,6.0,87.057,86.983,6.0]